[Event "Athens of East GM-Open 2019"]
[Site "Madurai"]
[Date "2019.08.11"]
[Round "1.1"]
[White "Koustuv Dash"]
[Black "Gupta, Abhijeet"]
[Result "0-1"]
[ECO "D73"]
[WhiteElo "1846"]
[BlackElo "2603"]
[Annotator "RC"]
[PlyCount "74"]
[EventDate "2019.08.11"]
[EventType "swiss"]
[EventCountry "IND"]
[SourceTitle "playchess.com"]
[Source "ChessBase"]
[SourceQuality "1"]
[TimeControl "5400+30"]

1. d4 {[%emt 0:00:00]} Nf6 {[%emt 0:00:00]} 2. c4 {[%emt 0:00:00]} g6 {[%emt 0:00:19]} 3. Nf3 {[%emt 0:00:02]} Bg7 {[%emt 0:00:24]} 4. g3 {[%emt 0:00:45]} d5 {[%emt 0:00:39]} 5. Bg2 {[%emt 0:00:26]} dxc4 {[%emt 0:01:00]} 6. Na3 {[%emt 0:05:46]} c5 {[%emt 0:02:56]} 7. Nxc4 {[%emt 0:02:43]} Nc6 {[%emt 0:00:43]} 8. dxc5 {[%emt 0:02:02]} Qxd1+ {[%emt 0:01:03]} 9. Kxd1 {[%emt 0:00:02]} Be6 {[%emt 0:00:36]} 10. Nfe5 {[%emt 0:10:01]} O-O-O+ {[%emt 0:01:58]} 11. Bd2 {[%emt 0:08:58]} Rd4 {[%emt 0:01:54]} 12. Rc1 {[%emt 0:07:52]} Rhd8 {[%emt 0:09:25]} 13. Bxc6 {[%emt 0:03:52]} bxc6 {[%emt 0:00:06]} 14. e3 {[%emt 0:01:39]} Rxd2+ {[%emt 0:00:55]} 15. Nxd2 {[%emt 0:03:33]} Ne4 {[%emt 0:00:04]} 16. Rc2 {[%emt 0:11:52]} Bxe5 {[%emt 0:04:08]} 17. Ke2 {[%emt 0:08:16]} Nxd2 {[%emt 0:03:24]} 18. Rxd2 {[%emt 0:00:14]} Bc4+ {[%emt 0:01:19]} 19. Kd1 {[%emt 0:01:57]} Bxb2 {[%emt 0:00:43]} 20. Rxd8+ {[%emt 0:00:17]} Kxd8 {[%emt 0:00:02]} 21. Kc2 {[%emt 0:00:07]} Ba3 {[%emt 0:00:55]} 22. Rd1+ {[%emt 0:03:17]} Kc7 {[%emt 0:00:03]} 23. Kc3 {[%emt 0:02:38]} Be6 {[%emt 0:00:39]} 24. Rd2 {[%emt 0:02:55]} Bxc5 {[%emt 0:00:06]} 25. e4 {[%emt 0:00:32]} a5 {[%emt 0:00:19]} 26. Rc2 {[%emt 0:00:57]} a4 {[%emt 0:00:04]} 27. Kb2 {[%emt 0:01:39]} a3+ {[%emt 0:00:16]} 28. Kb1 {[%emt 0:00:19]} Bd4 {[%emt 0:00:13]} 29. Rd2 {[%emt 0:01:37]} Bb2 {[%emt 0:00:08]} 30. f3 {[%emt 0:00:21]} c5 {[%emt 0:00:05]} 31. f4 {[%emt 0:00:22]} f5 {[%emt 0:00:10]} 32. e5 {[%emt 0:00:29]} c4 {[%emt 0:01:10]} 33. h4 {[%emt 0:01:30]} h5 {[%emt 0:00:05]} 34. Rc2 {[%emt 0:00:11]} Bd5 {[%emt 0:00:05]} 35. g4 {[%emt 0:02:01]} Be4 {[%emt 0:00:16]} 36. gxh5 {[%emt 0:00:36]} gxh5 {[%emt 0:00:10]} 37. e6 {[%emt 0:00:12]} Bxc2+ {[%emt 0:00:04]} 0-1

[Event "Athens of East GM-Open 2019"]
[Site "Madurai"]
[Date "2019.08.11"]
[Round "1.2"]
[White "Savchenko, Boris"]
[Black "Chilukuri Sai Varshith"]
[Result "1-0"]
[ECO "B38"]
[WhiteElo "2576"]
[BlackElo "1804"]
[Annotator "ChessBase"]
[PlyCount "79"]
[EventDate "2019.08.11"]
[EventType "swiss"]
[EventCountry "IND"]
[SourceTitle "playchess.com"]
[Source "ChessBase"]
[SourceQuality "1"]
[TimeControl "5400+30"]

1. e4 {[%emt 0:00:00]} c5 {[%emt 0:00:00]} 2. Nf3 {[%emt 0:00:00]} Nc6 {[%emt 0:00:15]} 3. d4 {[%emt 0:00:00]} cxd4 {[%emt 0:00:22]} 4. Nxd4 {[%emt 0:00:00]} g6 {[%emt 0:00:31]} 5. c4 {[%emt 0:00:03]} Bg7 {[%emt 0:00:47]} 6. Be3 {[%emt 0:00:07]} Nf6 {[%emt 0:00:19]} 7. Nc3 {[%emt 0:00:05]} O-O {[%emt 0:00:43]} 8. Be2 {[%emt 0:01:28]} d6 {[%emt 0:01:08]} 9. O-O {[%emt 0:00:12]} Bd7 {[%emt 0:00:55]} 10. Qd2 {[%emt 0:00:07]} Nxd4 {[%emt 0:01:19]} 11. Bxd4 {[%emt 0:00:14]} Bc6 {[%emt 0:00:35]} 12. f3 {[%emt 0:00:07]} a5 {[%emt 0:01:15]} 13. b3 {[%emt 0:00:11]} Nd7 {[%emt 0:01:30]} 14. Be3 {[%emt 0:00:06]} Nc5 {[%emt 0:00:50]} 15. Rac1 {[%emt 0:02:54]} Qb6 {[%emt 0:01:47]} 16. Nb5 {[%emt 0:00:56]} Rfc8 {[%emt 0:06:58]} 17. Rfd1 {[%emt 0:02:21]} Bxb5 {[%emt 0:13:08]} 18. cxb5 {[%emt 0:00:28]} Qd8 {[%emt 0:04:40]} 19. Bc4 {[%emt 0:05:35]} Qe8 {[%emt 0:06:01]} 20. a4 {[%emt 0:05:48]} b6 {[%emt 0:19:01]} 21. Bd5 {[%emt 0:01:28]} Rab8 {[%emt 0:00:33]} 22. Rc4 {[%emt 0:05:47]} Rd8 {[%emt 0:02:38]} 23. Bc6 {[%emt 0:06:29]} Qf8 {[%emt 0:00:58]} 24. Qc2 {[%emt 0:03:46]} e6 {[%emt 0:03:37]} 25. Bg5 {[%emt 0:00:25]} f5 {[%emt 0:04:57]} 26. exf5 {[%emt 0:03:06]} gxf5 {[%emt 0:00:20]} 27. Bxd8 {[%emt 0:00:31]} Rxd8 {[%emt 0:00:11]} 28. b4 {[%emt 0:05:39]} axb4 {[%emt 0:01:58]} 29. Rxb4 {[%emt 0:00:05]} d5 {[%emt 0:01:18]} 30. Rbb1 {[%emt 0:00:13]} Qd6 {[%emt 0:01:18]} 31. Kh1 {[%emt 0:07:18]} d4 {[%emt 0:04:27]} 32. Qa2 {[%emt 0:01:08]} d3 {[%emt 0:06:18]} 33. a5 {[%emt 0:00:17]} bxa5 {[%emt 0:00:03]} 34. Qxa5 {[%emt 0:00:14]} Be5 {[%emt 0:02:25]} 35. g3 {[%emt 0:06:25]} d2 {[%emt 0:02:39]} 36. Qb4 {[%emt 0:05:11]} f4 {[%emt 0:08:51]} 37. g4 {[%emt 0:06:37]} Qd4 {[%emt 0:02:20]} 38. Qxd4 {[%emt 0:02:53]} Rxd4 {[%emt 0:00:28]} 39. b6 {[%emt 0:01:44]} Rd8 {[%emt 0:01:12]} 40. Rb5 {[%emt 0:01:47]} 1-0

[Event "Athens of East GM-Open 2019"]
[Site "Madurai"]
[Date "2019.08.11"]
[Round "1.3"]
[White "Soundarya Kumar Pradhan"]
[Black "Smirnov, Pavel"]
[Result "0-1"]
[ECO "D35"]
[WhiteElo "1837"]
[BlackElo "2574"]
[Annotator "ChessBase"]
[PlyCount "34"]
[EventDate "2019.08.11"]
[EventType "swiss"]
[EventCountry "IND"]
[SourceTitle "playchess.com"]
[Source "ChessBase"]
[SourceQuality "1"]
[TimeControl "5400+30"]

1. d4 {[%emt 1:30:30]} Nf6 {[%emt 1:30:30]} 2. c4 {[%emt 0:00:30]} c6 3. Nf3 {[%emt 0:00:30]} d5 {[%emt 0:01:00]} 4. Nc3 {[%emt 0:00:30]} e6 {[%emt 0:00:30]} 5. cxd5 {[%emt 0:00:30]} exd5 {[%emt 0:00:30]} 6. Bg5 {[%emt 0:00:30]} h6 7. Bxf6 Qxf6 {[%emt 0:01:00]} 8. e3 {[%emt 0:01:00]} Bd6 {[%emt 0:00:30]} 9. h3 Bf5 10. Bd3 Nd7 11. Bxf5 Qxf5 12. Rb1 Qe6 13. O-O O-O 14. b4 a6 15. Qa4 Qe7 16. Nxd5 cxd5 17. Qa5 Nb8 0-1

[Event "Athens of East GM-Open 2019"]
[Site "Madurai"]
[Date "2019.08.11"]
[Round "1.4"]
[White "Tukhaev, Adam"]
[Black "Godson Merlin E"]
[Result "1-0"]
[ECO "B22"]
[WhiteElo "2541"]
[BlackElo "1828"]
[Annotator "ChessBase"]
[PlyCount "105"]
[EventDate "2019.08.11"]
[EventType "swiss"]
[EventCountry "IND"]
[SourceTitle "playchess.com"]
[Source "ChessBase"]
[SourceQuality "1"]
[TimeControl "5400+30"]

1. e4 {[%emt 0:00:00]} c5 {[%emt 0:00:00]} 2. Nf3 {[%emt 0:00:00]} a6 {[%emt 0:00:00]} 3. c3 {[%emt 0:00:56]} d5 {[%emt 0:00:16]} 4. exd5 {[%emt 0:04:25]} Qxd5 {[%emt 0:00:09]} 5. d4 {[%emt 0:00:10]} Nf6 {[%emt 0:00:37]} 6. Be2 {[%emt 0:03:28]} cxd4 {[%emt 0:06:59]} 7. cxd4 {[%emt 0:00:19]} e6 {[%emt 0:00:17]} 8. Nc3 {[%emt 0:00:53]} Qd6 {[%emt 0:00:29]} 9. O-O {[%emt 0:09:42]} Be7 {[%emt 0:09:56]} 10. Bg5 {[%emt 0:08:03]} O-O {[%emt 0:06:18]} 11. Rc1 {[%emt 0:02:25]} Nc6 {[%emt 0:27:48]} 12. Qd2 {[%emt 0:06:14]} Nd5 {[%emt 0:18:18]} 13. Be3 {[%emt 0:05:47]} Bd7 {[%emt 0:07:44]} 14. Ne4 {[%emt 0:03:46]} Qb4 {[%emt 0:01:51]} 15. Qc2 {[%emt 0:00:48]} Nxe3 {[%emt 0:12:28]} 16. fxe3 {[%emt 0:01:36]} Rac8 {[%emt 0:03:38]} 17. a3 {[%emt 0:02:11]} Qa5 {[%emt 0:00:25]} 18. Qb3 {[%emt 0:00:44]} Qd5 {[%emt 0:00:50]} 19. Qxd5 {[%emt 0:11:38]} exd5 {[%emt 0:00:05]} 20. Nc5 {[%emt 0:00:12]} Bxc5 {[%emt 0:00:39]} 21. Rxc5 {[%emt 0:00:47]} Ne7 {[%emt 0:00:51]} 22. Rfc1 {[%emt 0:01:03]} Be6 {[%emt 0:00:30]} 23. Bd3 {[%emt 0:02:17]} f6 {[%emt 0:00:30]} 24. Rc7 {[%emt 0:01:16]} Rfe8 {[%emt 0:00:36]} 25. Kf2 {[%emt 0:01:50]} Nf5 {[%emt 0:00:28]} 26. Ng1 {[%emt 0:20:13]} Nd6 {[%emt 0:00:37]} 27. Ne2 {[%emt 0:01:38]} Rxc7 {[%emt 0:00:25]} 28. Rxc7 {[%emt 0:00:06]} Rc8 {[%emt 0:00:20]} 29. Rc5 {[%emt 0:02:59]} g5 {[%emt 0:00:43]} 30. Nc3 {[%emt 0:00:51]} Rxc5 {[%emt 0:00:35]} 31. dxc5 {[%emt 0:00:05]} Nc8 {[%emt 0:00:27]} 32. e4 {[%emt 0:02:38]} dxe4 {[%emt 0:00:35]} 33. Bxe4 {[%emt 0:00:13]} b6 {[%emt 0:00:25]} 34. Bb7 {[%emt 0:01:46]} bxc5 {[%emt 0:00:27]} 35. Ne4 {[%emt 0:00:11]} Kf7 {[%emt 0:00:35]} 36. Bxc8 {[%emt 0:00:14]} Bxc8 {[%emt 0:00:07]} 37. Nd6+ {[%emt 0:00:06]} Ke6 {[%emt 0:00:50]} 38. Nxc8 {[%emt 0:00:06]} Kd7 {[%emt 0:00:18]} 39. Nb6+ {[%emt 0:00:07]} Kc6 {[%emt 0:00:11]} 40. Nc4 {[%emt 0:00:18]} Kd5 {[%emt 0:00:32]} 41. Nd2 {[%emt 0:03:11]} Kd4 {[%emt 0:00:12]} 42. Ke2 {[%emt 0:01:17]} g4 {[%emt 0:00:08]} 43. Nb3+ {[%emt 0:00:30]} Kd5 {[%emt 0:00:49]} 44. Ke3 {[%emt 0:00:13]} h5 {[%emt 0:00:23]} 45. g3 {[%emt 0:00:29]} f5 {[%emt 0:00:11]} 46. Kf4 {[%emt 0:00:30]} Kc4 {[%emt 0:00:05]} 47. Nc1 {[%emt 0:00:13]} Kd4 {[%emt 0:00:12]} 48. Kxf5 {[%emt 0:00:29]} Ke3 {[%emt 0:00:04]} 49. Nb3 {[%emt 0:01:08]} c4 {[%emt 0:00:14]} 50. Nc5 {[%emt 0:01:07]} Kd2 {[%emt 0:00:52]} 51. Nxa6 {[%emt 0:00:13]} Kc2 {[%emt 0:00:06]} 52. a4 {[%emt 0:00:16]} Kxb2 {[%emt 0:00:07]} 53. a5 {[%emt 0:00:11]} 1-0

[Event "Athens of East GM-Open 2019"]
[Site "Madurai"]
[Date "2019.08.11"]
[Round "1.6"]
[White "Mosadeghpour, Masoud"]
[Black "Rakshith Srinivasan"]
[Result "1-0"]
[ECO "C01"]
[WhiteElo "2494"]
[BlackElo "1889"]
[Annotator "ChessBase"]
[PlyCount "61"]
[EventDate "2019.08.11"]
[EventType "swiss"]
[EventCountry "IND"]
[SourceTitle "playchess.com"]
[Source "ChessBase"]
[SourceQuality "1"]
[TimeControl "5400+30"]

1. e4 {[%emt 0:00:00]} e6 {[%emt 0:00:00]} 2. d4 {[%emt 0:00:00]} d5 {[%emt 0:00:00]} 3. Nc3 {[%emt 0:00:03]} Bb4 {[%emt 0:00:00]} 4. exd5 {[%emt 0:01:53]} exd5 {[%emt 0:00:00]} 5. Bd3 {[%emt 0:00:08]} Nf6 {[%emt 0:01:07]} 6. a3 {[%emt 0:00:46]} Bxc3+ {[%emt 0:01:26]} 7. bxc3 {[%emt 0:00:03]} O-O {[%emt 0:00:10]} 8. Ne2 {[%emt 0:00:08]} b6 {[%emt 0:05:32]} 9. O-O {[%emt 0:01:16]} Ba6 {[%emt 0:03:56]} 10. Ng3 {[%emt 0:03:12]} Bxd3 {[%emt 0:03:26]} 11. cxd3 {[%emt 0:01:25]} Re8 {[%emt 0:03:43]} 12. Qf3 {[%emt 0:02:41]} Nbd7 {[%emt 0:05:35]} 13. Nf5 {[%emt 0:02:39]} g6 {[%emt 0:06:24]} 14. Nh6+ {[%emt 0:02:26]} Kg7 {[%emt 0:00:40]} 15. Bg5 {[%emt 0:00:37]} Qe7 {[%emt 0:00:48]} 16. g4 {[%emt 0:17:04]} c6 {[%emt 0:09:12]} 17. Qf4 {[%emt 0:09:05]} Qe6 {[%emt 0:03:46]} 18. Kg2 {[%emt 0:02:47]} c5 {[%emt 0:04:24]} 19. Rae1 {[%emt 0:03:24]} Qc6 {[%emt 0:00:06]} 20. Bh4 {[%emt 0:01:28]} Rf8 {[%emt 0:09:28]} 21. Re7 {[%emt 0:01:21]} Ng8 {[%emt 0:03:48]} 22. Rxf7+ {[%emt 0:02:53]} Kh8 {[%emt 0:00:10]} 23. Re1 {[%emt 0:04:43]} g5 {[%emt 0:11:31]} 24. Bxg5 {[%emt 0:02:40]} Qg6 {[%emt 0:00:05]} 25. Rxf8 {[%emt 0:03:32]} Rxf8 {[%emt 0:00:04]} 26. Nf5 {[%emt 0:00:05]} h6 {[%emt 0:02:18]} 27. Bh4 {[%emt 0:02:52]} h5 {[%emt 0:01:47]} 28. h3 {[%emt 0:00:43]} Ndf6 {[%emt 0:00:25]} 29. f3 {[%emt 0:01:16]} Kh7 {[%emt 0:05:10]} 30. Ne7 {[%emt 0:04:39]} Qg7 {[%emt 0:03:33]} 31. Qf5+ {[%emt 0:00:15]} 1-0

[Event "Athens of East GM-Open 2019"]
[Site "Madurai"]
[Date "2019.08.11"]
[Round "1.7"]
[White "Suganthan S"]
[Black "Vasquez Schroeder, Rodrigo"]
[Result "0-1"]
[ECO "B25"]
[WhiteElo "1740"]
[BlackElo "2496"]
[Annotator "ChessBase"]
[PlyCount "80"]
[EventDate "2019.08.11"]
[EventType "swiss"]
[EventCountry "IND"]
[SourceTitle "playchess.com"]
[Source "ChessBase"]
[SourceQuality "1"]
[TimeControl "5400+30"]

1. e4 {[%emt 0:00:00]} c5 {[%emt 0:00:00]} 2. Nc3 {[%emt 0:00:13]} Nc6 {[%emt 0:00:22]} 3. g3 {[%emt 0:00:30]} g6 {[%emt 0:00:55]} 4. Bg2 {[%emt 0:00:12]} Bg7 {[%emt 0:00:10]} 5. d3 {[%emt 0:00:19]} d6 {[%emt 0:00:25]} 6. f4 {[%emt 0:00:25]} b6 {[%emt 0:00:40]} 7. Nf3 {[%emt 0:01:38]} Bb7 {[%emt 0:00:07]} 8. Be3 {[%emt 0:04:10]} Nd4 {[%emt 0:01:29]} 9. O-O {[%emt 0:00:55]} Qd7 {[%emt 0:01:08]} 10. Rb1 {[%emt 0:08:47]} e6 {[%emt 0:00:48]} 11. Ne2 {[%emt 0:01:27]} Nxf3+ {[%emt 0:02:38]} 12. Bxf3 {[%emt 0:00:31]} f5 {[%emt 0:01:12]} 13. c4 {[%emt 0:07:38]} Nf6 {[%emt 0:02:06]} 14. Nc3 {[%emt 0:02:31]} O-O {[%emt 0:00:24]} 15. h3 {[%emt 0:09:21]} Rad8 {[%emt 0:03:12]} 16. Qe2 {[%emt 0:06:46]} Bc6 {[%emt 0:10:57]} 17. Rbd1 {[%emt 0:02:59]} Qb7 {[%emt 0:04:44]} 18. Qg2 {[%emt 0:03:08]} a6 {[%emt 0:02:15]} 19. a4 {[%emt 0:08:32]} h5 {[%emt 0:03:26]} 20. exf5 {[%emt 0:19:43]} Bxf3 {[%emt 0:00:07]} 21. Qxf3 {[%emt 0:00:10]} Qxf3 {[%emt 0:00:14]} 22. Rxf3 {[%emt 0:00:03]} gxf5 {[%emt 0:00:56]} 23. d4 {[%emt 0:04:30]} h4 {[%emt 0:06:11]} 24. gxh4 {[%emt 0:09:28]} Kf7 {[%emt 0:02:05]} 25. Rf2 {[%emt 0:01:05]} Nh5 {[%emt 0:01:51]} 26. dxc5 {[%emt 0:01:33]} bxc5 {[%emt 0:01:24]} 27. Rfd2 {[%emt 0:01:20]} Rg8 {[%emt 0:02:11]} 28. Kh2 {[%emt 0:00:22]} Rb8 {[%emt 0:02:34]} 29. Rg1 {[%emt 0:03:05]} Bf6 {[%emt 0:03:25]} 30. a5 {[%emt 0:02:40]} Rb4 {[%emt 0:01:56]} 31. Na2 {[%emt 0:00:49]} Rb3 {[%emt 0:01:18]} 32. Bf2 {[%emt 0:00:39]} Rxg1 {[%emt 0:00:55]} 33. Kxg1 {[%emt 0:00:24]} Nxf4 {[%emt 0:00:13]} 34. Kf1 {[%emt 0:00:36]} Rxh3 {[%emt 0:00:57]} 35. b4 {[%emt 0:00:25]} cxb4 {[%emt 0:00:11]} 36. Rxd6 {[%emt 0:00:34]} b3 {[%emt 0:00:25]} 37. Nb4 {[%emt 0:00:24]} b2 {[%emt 0:00:19]} 38. Rd1 {[%emt 0:00:07]} Rh1+ {[%emt 0:00:52]} 39. Bg1 {[%emt 0:00:02]} b1=Q {[%emt 0:00:32]} 40. Rxb1 {[%emt 0:00:03]} Bd4 {[%emt 0:00:10]} 0-1

[Event "Athens of East GM-Open 2019"]
[Site "Madurai"]
[Date "2019.08.11"]
[Round "1.8"]
[White "Venkatesh, M.R."]
[Black "Aravind P V S"]
[Result "1-0"]
[ECO "B02"]
[WhiteElo "2480"]
[BlackElo "1806"]
[Annotator "ChessBase"]
[PlyCount "47"]
[EventDate "2019.08.11"]
[EventType "swiss"]
[EventCountry "IND"]
[SourceTitle "playchess.com"]
[Source "ChessBase"]
[SourceQuality "1"]
[TimeControl "5400+30"]

1. e4 {[%emt 0:10:03]} d5 {[%emt 0:00:00]} 2. exd5 {[%emt 0:00:15]} Nf6 {[%emt 0:00:00]} 3. Nc3 {[%emt 0:04:25]} Nxd5 {[%emt 0:00:35]} 4. Nf3 {[%emt 0:00:49]} Bf5 {[%emt 0:02:22]} 5. Bc4 {[%emt 0:03:32]} e6 {[%emt 0:02:13]} 6. O-O {[%emt 0:12:51]} Nb6 {[%emt 0:08:50]} 7. Bb5+ {[%emt 0:01:12]} c6 {[%emt 0:01:30]} 8. Be2 {[%emt 0:00:07]} N8d7 {[%emt 0:03:18]} 9. d4 {[%emt 0:01:29]} Qc7 {[%emt 0:02:17]} 10. Bd3 {[%emt 0:01:57]} Bxd3 {[%emt 0:04:18]} 11. Qxd3 {[%emt 0:00:08]} Be7 {[%emt 0:00:35]} 12. Ne4 {[%emt 0:04:09]} Rd8 {[%emt 0:07:11]} 13. a4 {[%emt 0:04:36]} a5 {[%emt 0:08:58]} 14. c4 {[%emt 0:05:59]} O-O {[%emt 0:21:38]} 15. Qb3 {[%emt 0:24:28]} Nf6 {[%emt 0:05:54]} 16. Re1 {[%emt 0:06:18]} Nxe4 {[%emt 0:05:15]} 17. Rxe4 {[%emt 0:00:03]} c5 {[%emt 0:06:21]} 18. Bf4 {[%emt 0:02:07]} Bd6 {[%emt 0:01:19]} 19. dxc5 {[%emt 0:00:11]} Qxc5 {[%emt 0:05:57]} 20. Be3 {[%emt 0:00:33]} Qf5 {[%emt 0:02:17]} 21. Rd4 {[%emt 0:02:40]} Bc5 {[%emt 0:02:24]} 22. Rf4 {[%emt 0:00:41]} Rd3 {[%emt 0:05:38]} 23. Rxf5 {[%emt 0:00:58]} Rxb3 {[%emt 0:00:09]} 24. Rxc5 {[%emt 0:00:04]} 1-0

[Event "Athens of East GM-Open 2019"]
[Site "Madurai"]
[Date "2019.08.11"]
[Round "1.9"]
[White "Shyam Kumar M"]
[Black "Shyaamnikhil P"]
[Result "0-1"]
[ECO "E20"]
[WhiteElo "1846"]
[BlackElo "2456"]
[Annotator "ChessBase"]
[PlyCount "66"]
[EventDate "2019.08.11"]
[EventType "swiss"]
[EventCountry "IND"]
[SourceTitle "playchess.com"]
[Source "ChessBase"]
[SourceQuality "1"]
[TimeControl "5400+30"]

1. d4 {[%emt 0:00:00]} Nf6 {[%emt 0:02:12]} 2. c4 {[%emt 0:00:00]} b6 {[%emt 0:03:51]} 3. Nc3 {[%emt 0:02:26]} Bb7 {[%emt 0:00:08]} 4. Nf3 {[%emt 0:01:32]} e6 {[%emt 0:00:37]} 5. g3 {[%emt 0:00:05]} Bb4 {[%emt 0:01:51]} 6. Bg2 {[%emt 0:01:00]} c5 {[%emt 0:03:52]} 7. e3 {[%emt 0:09:42]} Nc6 {[%emt 0:01:52]} 8. O-O {[%emt 0:00:19]} Bxc3 {[%emt 0:07:13]} 9. bxc3 {[%emt 0:00:14]} Na5 {[%emt 0:00:06]} 10. Nd2 {[%emt 0:05:30]} Bxg2 {[%emt 0:03:52]} 11. Kxg2 {[%emt 0:00:07]} Qc7 {[%emt 0:00:10]} 12. Qa4 {[%emt 0:05:47]} O-O {[%emt 0:03:16]} 13. Ba3 {[%emt 0:00:55]} Rfc8 {[%emt 0:04:04]} 14. Rfc1 {[%emt 0:01:02]} Ne8 {[%emt 0:14:42]} 15. Nb3 {[%emt 0:17:30]} Qc6+ {[%emt 0:09:28]} 16. Qxc6 {[%emt 0:00:10]} Nxc6 {[%emt 0:00:05]} 17. dxc5 {[%emt 0:00:25]} Ne5 {[%emt 0:00:05]} 18. cxb6 {[%emt 0:01:23]} axb6 {[%emt 0:00:06]} 19. Bb4 {[%emt 0:00:05]} Nxc4 {[%emt 0:00:15]} 20. a4 {[%emt 0:01:08]} Nf6 {[%emt 0:02:31]} 21. a5 {[%emt 0:02:47]} bxa5 {[%emt 0:00:08]} 22. Nxa5 {[%emt 0:00:10]} Nxa5 {[%emt 0:00:57]} 23. Rxa5 {[%emt 0:00:31]} Rxa5 {[%emt 0:00:16]} 24. Bxa5 {[%emt 0:00:06]} Ra8 {[%emt 0:00:30]} 25. Bb4 {[%emt 0:00:42]} Ra2 {[%emt 0:00:08]} 26. Rd1 {[%emt 0:17:57]} h5 {[%emt 0:03:33]} 27. c4 {[%emt 0:04:55]} Rc2 {[%emt 0:01:06]} 28. Be7 {[%emt 0:06:20]} Ng4 {[%emt 0:00:40]} 29. Rxd7 {[%emt 0:00:22]} Nxe3+ {[%emt 0:08:47]} 30. Kf3 {[%emt 0:01:20]} Nxc4 {[%emt 0:00:09]} 31. Rd8+ {[%emt 0:00:12]} Kh7 {[%emt 0:00:06]} 32. h3 {[%emt 0:00:23]} f5 {[%emt 0:03:41]} 33. Bb4 {[%emt 0:02:40]} Ne5+ {[%emt 0:00:29]} 0-1

[Event "Athens of East GM-Open 2019"]
[Site "Madurai"]
[Date "2019.08.11"]
[Round "1.10"]
[White "Khusenkhojaev, Muhammad"]
[Black "Krithigga K"]
[Result "1-0"]
[ECO "E11"]
[WhiteElo "2441"]
[BlackElo "1793"]
[Annotator "NA"]
[PlyCount "105"]
[EventDate "2019.08.11"]
[EventType "swiss"]
[EventCountry "IND"]
[SourceTitle "playchess.com"]
[Source "ChessBase"]
[SourceQuality "1"]
[TimeControl "5400+30"]

1. Nf3 {[%emt 0:00:00]} d5 {[%emt 0:00:00]} 2. d4 {[%emt 0:00:00]} Nf6 {[%emt 0:00:00]} 3. c4 {[%emt 0:00:00]} e6 {[%emt 0:00:00]} 4. g3 {[%emt 0:00:00]} Bb4+ {[%emt 0:00:00]} 5. Bd2 {[%emt 0:00:01]} Be7 {[%emt 0:00:00]} 6. Bg2 {[%emt 0:00:09]} O-O {[%emt 0:00:36]} 7. O-O {[%emt 0:00:07]} c6 {[%emt 0:00:15]} 8. Qc2 {[%emt 0:00:07]} b6 {[%emt 0:01:00]} 9. Rd1 {[%emt 0:00:39]} Bb7 {[%emt 0:01:40]} 10. b3 {[%emt 0:01:02]} Nbd7 {[%emt 0:03:24]} 11. Nc3 {[%emt 0:00:06]} Rc8 {[%emt 0:02:17]} 12. e4 {[%emt 0:00:36]} Nxe4 {[%emt 0:04:01]} 13. Nxe4 {[%emt 0:00:20]} dxe4 {[%emt 0:00:07]} 14. Qxe4 {[%emt 0:00:10]} Bf6 {[%emt 0:04:23]} 15. Rac1 {[%emt 0:04:59]} Qe7 {[%emt 0:07:47]} 16. Be3 {[%emt 0:06:33]} Rfd8 {[%emt 0:19:22]} 17. c5 {[%emt 0:02:02]} g6 {[%emt 0:16:44]} 18. b4 {[%emt 0:07:39]} Bg7 {[%emt 0:07:51]} 19. Bg5 {[%emt 0:00:39]} f6 {[%emt 0:08:46]} 20. Bf4 {[%emt 0:00:18]} Qf7 {[%emt 0:04:01]} 21. Qc2 {[%emt 0:04:59]} b5 {[%emt 0:04:37]} 22. a4 {[%emt 0:05:16]} a6 {[%emt 0:01:17]} 23. Ra1 {[%emt 0:00:05]} Ra8 {[%emt 0:01:09]} 24. Ra3 {[%emt 0:03:03]} g5 {[%emt 0:03:44]} 25. Be3 {[%emt 0:00:51]} g4 {[%emt 0:01:34]} 26. Nd2 {[%emt 0:00:35]} f5 {[%emt 0:00:50]} 27. Nb3 {[%emt 0:01:58]} Nf6 {[%emt 0:00:43]} 28. Bg5 {[%emt 0:05:19]} Rd7 {[%emt 0:02:02]} 29. Bxf6 {[%emt 0:06:48]} Bxf6 {[%emt 0:01:02]} 30. Na5 {[%emt 0:00:04]} Rc8 {[%emt 0:00:19]} 31. axb5 {[%emt 0:05:41]} axb5 {[%emt 0:00:06]} 32. Nxb7 {[%emt 0:00:25]} Rxb7 {[%emt 0:00:10]} 33. Qa2 {[%emt 0:01:20]} Rd7 {[%emt 0:03:54]} 34. Ra8 {[%emt 0:00:20]} Rdd8 {[%emt 0:00:34]} 35. Rxc8 {[%emt 0:00:13]} Rxc8 {[%emt 0:00:01]} 36. Bxc6 {[%emt 0:00:13]} Rd8 {[%emt 0:01:42]} 37. d5 {[%emt 0:01:15]} f4 {[%emt 0:00:29]} 38. d6 {[%emt 0:00:30]} fxg3 {[%emt 0:00:47]} 39. hxg3 {[%emt 0:00:14]} h5 {[%emt 0:00:49]} 40. Bxb5 {[%emt 0:00:22]} h4 {[%emt 0:00:21]} 41. Bc4 {[%emt 0:00:09]} Qh5 {[%emt 0:01:11]} 42. Bxe6+ {[%emt 0:00:12]} Kh8 {[%emt 0:00:05]} 43. Qd5 {[%emt 0:00:21]} Bg5 {[%emt 0:00:54]} 44. Qd4+ {[%emt 0:00:19]} Kh7 {[%emt 0:00:18]} 45. Qxg4 {[%emt 0:00:12]} Qh6 {[%emt 0:00:20]} 46. Kg2 {[%emt 0:00:32]} Re8 {[%emt 0:00:29]} 47. Bf7 {[%emt 0:01:29]} Rf8 {[%emt 0:00:20]} 48. Qh5 {[%emt 0:01:54]} h3+ {[%emt 0:01:59]} 49. Kxh3 {[%emt 0:00:29]} Rxf7 {[%emt 0:00:00]} 50. Qxh6+ {[%emt 0:00:06]} Kxh6 {[%emt 0:00:00]} 51. f4 {[%emt 0:00:04]} Bd8 {[%emt 0:00:00]} 52. c6 {[%emt 0:00:05]} Kg6 {[%emt 0:00:00]} 53. Rc1 {[%emt 0:00:06]} 1-0